bitfinex/quotes_BTCUSD_20250123
["timestamp","ask_amount","ask_price","bid_price","bid_amount"]
[1737665363609,0.628268,104550.0,104530.0,0.0001426]
[1737665363990,0.43696,104550.0,104530.0,0.0001426]
[1737665364201,0.628268,104550.0,104530.0,0.0001426]
[1737665364426,0.62996229,104550.0,104530.0,0.0001426]
[1737665364625,0.34300429,104540.0,104530.0,0.0001426]
[1737665364828,0.245657,104540.0,104530.0,0.0001426]
[1737665365184,0.248657,104540.0,104530.0,0.0001426]
[1737665365395,0.34600429,104540.0,104530.0,0.0001426]
[1737665365605,0.81986229,104540.0,104530.0,0.0001426]
[1737665365889,0.7100405,104540.0,104530.0,0.0001426]
[1737665366090,0.39900429,104540.0,104530.0,0.0001426]
[1737665366436,0.34300429,104540.0,104530.0,0.0001426]
[1737665366635,0.57190629,104540.0,104530.0,0.0001426]
[1737665366830,0.57990629,104540.0,104530.0,0.0001426]
[1737665367265,0.57990629,104540.0,104490.0,0.0009806]
[1737665367266,0.2,104510.0,104490.0,0.0009806]
[1737665367609,0.19135,104520.0,104490.0,0.0009806]
[1737665367784,0.095694,104500.0,104470.0,0.1915723]
[1737665368014,0.095694,104500.0,104470.0,0.09846999]
[1737665368015,0.382788,104500.0,104470.0,0.09846999]
[1737665368225,0.095703,104490.0,104470.0,0.19418999]
[1737665368438,0.287112,104490.0,104470.0,0.09846999]
[1737665368639,0.287112,104490.0,104470.0,0.09896643]
[1737665368842,0.095705,104490.0,104470.0,0.09896643]
[1737665369044,0.095712,104480.0,104470.0,0.00161914]
[1737665369321,0.11923598,104480.0,104470.0,0.00161914]
[1737665369531,0.02352398,104480.0,104470.0,0.00063874]
[1737665369735,0.50357312,104490.0,104470.0,0.00063874]
[1737665369938,0.287115,104490.0,104470.0,0.00063874]
[1737665370155,0.095712,104480.0,104470.0,0.00063874]
[1737665370383,0.47309941,104480.0,104470.0,0.00063874]
[1737665370583,0.44608741,104480.0,104440.0,0.0001423]
[1737665370808,0.295739,104450.0,104440.0,0.0001423]
[1737665371016,0.245757,104430.0,104420.0,0.0001424]
[1737665371219,0.77526399,104430.0,104420.0,0.0001424]
[1737665371426,0.145776,104410.0,104400.0,0.0001424]
[1737665371650,0.245785,104400.0,104380.0,0.08312162]
[1737665371852,0.27534552,104400.0,104390.0,0.00112953]
[1737665372086,0.24734729,104400.0,104390.0,0.00112953]
[1737665372290,0.38699229,104400.0,104390.0,0.00112953]
[1737665372489,0.55713229,104400.0,104390.0,0.00127802]
[1737665372724,0.57713229,104400.0,104390.0,0.00127802]
[1737665372944,0.63738229,104400.0,104390.0,0.00127802]
[1737665373160,0.245813,104370.0,104330.0,0.095842]
[1737665373417,0.245834,104350.0,104320.0,0.00014849]
[1737665373624,0.245834,104350.0,104260.0,0.038376]
[1737665373625,0.09589,104290.0,104260.0,0.038376]
[1737665373831,0.095904,104270.0,104260.0,0.03887254]
[1737665374038,0.38505329,104280.0,104260.0,0.03887254]
[1737665374245,0.38505429,104280.0,104260.0,0.00049654]
[1737665374451,0.09734729,104280.0,104270.0,0.0959]
[1737665374655,0.05,104310.0,104250.0,0.08766983]
[1737665374870,0.245886,104290.0,104260.0,0.09848323]
[1737665375100,0.124,104270.0,104250.0,0.27708904]
[1737665375289,0.124,104270.0,104220.0,0.00261613]
[1737665375290,0.115941,104230.0,104220.0,0.00261613]
[1737665375512,0.095972,104200.0,104140.0,0.1111081]
[1737665375725,0.191901,104220.0,104150.0,0.05]
[1737665375726,0.191917,104220.0,104150.0,0.05]
[1737665375966,0.07,104250.0,104160.0,0.05]
[1737665376189,0.095979,104190.0,104170.0,0.06433193]
[1737665376398,0.383781,104230.0,104190.0,0.287919]
[1737665376599,0.09734729,104220.0,104190.0,0.28793]
[1737665376824,0.09734729,104220.0,104190.0,0.191956]
[1737665377033,0.006,104230.0,104220.0,0.09595]
[1737665377262,0.006,104230.0,104220.0,0.14644627]
[1737665377464,0.00244387,104260.0,104240.0,0.28779]
[1737665377638,0.09734729,104260.0,104210.0,0.191904]
[1737665377880,0.00014837,104230.0,104210.0,0.191905]
[1737665378111,0.77895329,104220.0,104140.0,0.2078401]
[1737665378326,0.09734729,104220.0,104210.0,0.0001424]
[1737665378556,0.00014837,104230.0,104220.0,0.09595]
[1737665378763,0.00014837,104230.0,104220.0,0.11895]
[1737665378971,0.00014837,104230.0,104220.0,0.09595]
[1737665379176,0.00114837,104230.0,104220.0,0.11895]
[1737665379400,0.00114837,104230.0,104220.0,0.21629729]
[1737665379603,0.00014837,104230.0,104220.0,0.21629729]
[1737665379814,0.00014837,104230.0,104220.0,0.38629729]
[1737665380017,0.04378978,104300.0,104240.0,0.191846]
[1737665380220,0.28769,104280.0,104250.0,0.095917]
[1737665380426,0.09734729,104270.0,104250.0,0.191843]
[1737665380643,0.08359775,104270.0,104260.0,0.095914]
[1737665380846,0.08359775,104270.0,104260.0,0.26626129]
[1737665381052,0.08359775,104270.0,104260.0,0.43626129]
[1737665381307,0.095905,104270.0,104230.0,0.0453]
[1737665381511,0.19326329,104260.0,104240.0,0.0009827]
[1737665381713,0.00014914,104300.0,104250.0,0.095916]
[1737665381924,0.095925,104250.0,104230.0,0.095936]
[1737665382138,0.095938,104240.0,104220.0,0.09595]
[1737665382335,0.11595,104220.0,104210.0,0.0001424]
[1737665382541,0.19329729,104220.0,104210.0,0.0001424]
[1737665382742,0.21329729,104220.0,104210.0,0.0001424]
[1737665382943,0.34329729,104220.0,104210.0,0.00029077]
[1737665383147,0.0817,104240.0,104210.0,0.19219377]
[1737665383385,0.363521,104270.0,104240.0,0.191863]
[1737665383583,0.19326829,104260.0,104230.0,0.191883]
[1737665383791,0.19326829,104260.0,104240.0,0.095932]
[1737665383923,0.09734729,104260.0,104250.0,0.095923]
[1737665384125,0.09734729,104260.0,104230.0,0.191869]
[1737665384327,0.09595,104220.0,104170.0,0.19198]
[1737665384529,0.09734729,104180.0,104130.0,0.215233]
[1737665384880,0.191938,104200.0,104180.0,0.095987]
[1737665384881,0.095972,104200.0,104180.0,0.095987]
[1737665385064,0.465956,104210.0,104150.0,0.192014]
[1737665385065,0.38528629,104190.0,104150.0,0.192014]
[1737665385227,0.09734729,104190.0,104180.0,0.095987]
[1737665385429,0.095969,104200.0,104170.0,0.383968]
[1737665385715,0.09749624,104200.0,104190.0,0.095978]
[1737665385858,0.00014895,104200.0,104190.0,0.118978]
[1737665386038,0.0777,104240.0,104220.0,0.191898]
[1737665386252,0.19328929,104230.0,104210.0,0.095957]
[1737665386455,0.00014906,104240.0,104230.0,0.095941]
[1737665386658,0.00014906,104240.0,104230.0,0.118941]
[1737665386937,0.00014906,104240.0,104230.0,0.095941]
[1737665387256,0.09749635,104240.0,104220.0,0.287837]
[1737665387448,0.00014906,104240.0,104230.0,0.118941]
[1737665387851,0.00014906,104240.0,104230.0,0.21628829]
[1737665388059,0.00014906,104240.0,104230.0,0.38628829]
[1737665388274,0.307834,104310.0,104280.0,0.095894]
[1737665388483,0.2059798,104310.0,104280.0,0.09589]
[1737665388727,0.02,104260.0,104200.0,0.191938]
[1737665388930,0.02,104260.0,104140.0,0.0158081]
[1737665388931,0.02,104180.0,104140.0,0.0158081]
[1737665389132,0.09734729,104160.0,104150.0,0.096015]
[1737665389355,0.191938,104200.0,104140.0,0.0158081]
[1737665389602,0.09734729,104150.0,104140.0,0.0158081]
[1737665389827,0.61639702,104150.0,104140.0,0.0158081]
[1737665390061,0.61639702,104150.0,104140.0,0.01630513]
[1737665390062,0.27566229,104150.0,104140.0,0.01630513]
[1737665390269,0.29566229,104150.0,104140.0,0.01830513]
[1737665390625,0.65253529,104150.0,104140.0,0.01830513]
[1737665390812,0.27566229,104150.0,104140.0,0.01830513]
[1737665391002,0.095999,104170.0,104140.0,0.11432913]
[1737665391202,0.095999,104170.0,104150.0,0.192018]
[1737665391203,0.09734729,104170.0,104150.0,0.192018]
[1737665391430,0.19193,104210.0,104180.0,0.191974]
[1737665391568,0.09734729,104210.0,104200.0,0.095969]
[1737665391775,0.183249,104230.0,104200.0,0.287903]
[1737665391977,0.095976,104200.0,104170.0,0.095996]
[1737665392180,0.11734729,104180.0,104140.0,0.0158081]
[1737665392381,0.112861,104100.0,104090.0,0.14292965]
[1737665392594,0.09734729,104100.0,104090.0,0.23899965]
[1737665392794,0.0455,104140.0,104100.0,0.096053]
[1737665392998,0.096061,104100.0,104090.0,0.14342668]
[1737665393237,0.09734729,104100.0,104090.0,0.14342668]
[1737665393449,0.17514729,104100.0,104070.0,0.02089868]
[1737665393656,0.096107,104050.0,104040.0,0.0158081]
[1737665393889,0.096107,104050.0,104040.0,0.1119241]
[1737665393890,0.09734729,104050.0,104040.0,0.1119241]
[1737665394012,0.09734729,104050.0,104040.0,0.0158081]
[1737665394214,0.1426,104100.0,104050.0,0.14734729]
[1737665394215,0.09734729,104100.0,104050.0,0.14734729]
[1737665394484,0.384409,104060.0,104040.0,0.0158081]
[1737665394678,0.28948429,104100.0,104070.0,0.096085]
[1737665394878,0.09734729,104100.0,104050.0,0.0032]
[1737665395084,0.09734729,104100.0,104090.0,0.09607]
[1737665395276,0.096034,104130.0,104100.0,0.192107]
[1737665395485,0.09734729,104130.0,104120.0,0.096038]
[1737665395689,0.192016,104160.0,104120.0,0.0032]
[1737665395916,0.09784343,104160.0,104150.0,0.09601]
[1737665396119,0.28939629,104140.0,104110.0,0.096043]
[1737665396384,0.38542629,104140.0,104110.0,0.288147]
[1737665396565,0.19339329,104120.0,104070.0,0.0032]
[1737665396770,0.19339029,104120.0,104110.0,0.0009829]
[1737665397183,0.096076,104090.0,104060.0,0.192189]
[1737665397396,0.096107,104050.0,104010.0,0.3494585]
[1737665397646,0.15,104040.0,104010.0,0.1539845]
[1737665397862,0.15,104040.0,104010.0,0.0578395]
[1737665397863,0.59348229,104020.0,104010.0,0.0578395]
[1737665398107,0.48150229,104020.0,104010.0,0.0578395]
[1737665398322,0.48150229,104020.0,104010.0,0.0207105]
[1737665398565,0.496144,104010.0,104000.0,0.0003706]
[1737665398777,3.37728881,104010.0,104000.0,0.0003706]
[1737665398999,1.40713429,104010.0,104000.0,0.0003706]
[1737665399230,0.77351129,104010.0,104000.0,0.0003706]
[1737665399437,0.20726129,104010.0,103930.0,0.00015039]
[1737665399649,0.09734729,103960.0,103930.0,0.192436]
[1737665399888,0.09734729,103960.0,103950.0,0.0962]
[1737665400149,0.0978419,103960.0,103950.0,0.125061]
[1737665400352,0.3,104050.0,104040.0,0.096116]
[1737665400591,0.1939,104120.0,104060.0,0.288292]
[1737665400592,0.05,104080.0,104060.0,0.288292]
[1737665400829,0.09734729,104070.0,104040.0,0.09611]
[1737665401068,0.09734729,104060.0,104030.0,0.02]
[1737665401318,0.09734729,104060.0,104030.0,0.116124]
[1737665401557,0.192128,104100.0,104060.0,0.116097]
[1737665401558,0.096068,104100.0,104060.0,0.116097]
[1737665401783,0.096068,104100.0,104080.0,0.02]
[1737665401784,0.28947229,104100.0,104080.0,0.02]
[1737665402011,0.09734729,104100.0,104090.0,0.02]
[1737665402216,0.09734729,104100.0,104070.0,0.212162]
[1737665402422,0.09734729,104100.0,104080.0,0.02]
[1737665402633,0.288121,104130.0,104090.0,0.02]
[1737665402838,0.09734729,104120.0,104100.0,0.11606]
[1737665403040,0.09734729,104120.0,104090.0,0.192126]
[1737665403238,0.09734729,104120.0,104110.0,0.096052]
[1737665403395,0.09734729,104120.0,104110.0,0.02]
[1737665403600,0.19339029,104120.0,104110.0,0.02]
[1737665404023,0.288115,104130.0,104120.0,0.02]
[1737665404224,0.096061,104100.0,104090.0,0.0209879]
[1737665404441,0.288137,104120.0,104090.0,0.0009879]
[1737665404650,0.09734729,104130.0,104090.0,0.28948629]
[1737665404857,0.096031,104140.0,104100.0,0.19340229]
[1737665405062,0.09734729,104140.0,104100.0,0.37968307]
[1737665405268,0.09734729,104140.0,104120.0,0.096037]
[1737665405476,0.288132,104120.0,104090.0,0.096067]
[1737665405687,0.09734729,104110.0,104100.0,0.0009949]
[1737665406114,0.00049583,104140.0,104080.0,0.02]
[1737665406320,0.09784312,104140.0,104120.0,0.288105]
[1737665406553,0.00049583,104140.0,104130.0,0.096033]
[1737665406766,0.00049583,104140.0,104130.0,0.19338029]
[1737665406976,0.00049583,104140.0,104130.0,0.34338029]
[1737665407615,0.0156081,104190.0,104180.0,0.095987]
[1737665407840,0.11295539,104190.0,104180.0,0.09613606]
[1737665408248,0.0156081,104190.0,104180.0,0.14414677]
[1737665408731,1.4e-07,104200.0,104190.0,0.105938]
[1737665408934,6e-05,104230.0,104220.0,0.09595]
[1737665409343,0.16740727,104230.0,104170.0,0.21096411]
[1737665409556,0.11734727,104220.0,104200.0,0.0969594]
[1737665409764,0.01999998,104190.0,104160.0,0.096001]
[1737665410003,0.01999998,104160.0,104130.0,0.01943514]
[1737665410200,0.01999998,104160.0,104120.0,0.192086]
[1737665410201,0.09734729,104150.0,104120.0,0.192086]
[1737665410443,0.09734729,104160.0,104140.0,0.096021]
[1737665410647,0.01999998,104170.0,104140.0,0.00961701]
[1737665410856,0.09734729,104170.0,104150.0,0.19203]
[1737665411064,0.01999998,104180.0,104140.0,0.29766901]
[1737665411272,0.11734727,104160.0,104130.0,0.09716706]
[1737665411487,0.01999998,104150.0,104130.0,0.11822355]
[1737665411749,0.24337129,104140.0,104130.0,0.02219155]
[1737665411961,0.19337129,104140.0,104130.0,0.02219155]
[1737665412172,0.24337129,104140.0,104130.0,0.02120555]
[1737665412457,0.21337127,104140.0,104130.0,0.02120555]
[1737665412713,0.11734727,104140.0,104130.0,0.00014906]
[1737665412915,0.01999998,104160.0,104130.0,0.00014906]
[1737665413118,0.09734729,104150.0,104130.0,0.19221506]
[1737665413326,0.09734729,104150.0,104130.0,0.01937057]
[1737665413529,0.09734729,104150.0,104130.0,0.09617906]
[1737665413734,0.241994,104170.0,104130.0,0.10937365]
[1737665413735,0.145998,104170.0,104130.0,0.10937365]
[1737665413976,0.09734729,104160.0,104130.0,0.30144165]
[1737665414196,0.26204498,104150.0,104130.0,0.01334365]
[1737665414465,0.34337129,104140.0,104130.0,0.000996]
[1737665414711,0.11608898,104070.0,104060.0,0.038456]
[1737665414915,0.09734729,104070.0,104060.0,0.03895183]
[1737665415122,0.05,104080.0,104060.0,0.00049583]
[1737665415325,0.14734729,104080.0,104060.0,0.09659183]
[1737665415563,0.14734729,104080.0,104060.0,0.01015501]
[1737665415767,0.05,104110.0,104060.0,0.2996923]
[1737665415974,0.09734729,104110.0,104070.0,0.28950729]
[1737665416178,0.06999998,104120.0,104070.0,0.28950729]
[1737665416388,0.05,104110.0,104080.0,0.288232]
[1737665416605,0.16734727,104120.0,104090.0,0.096067]
[1737665416856,0.14734729,104110.0,104080.0,0.288235]
[1737665417070,0.100981,104130.0,104100.0,0.09734729]
[1737665417278,0.100981,104130.0,104080.0,0.238641]
[1737665417279,0.14734729,104120.0,104080.0,0.238641]
[1737665417502,0.16734727,104120.0,104090.0,0.288207]
[1737665417709,0.004946,104130.0,104110.0,0.096049]
[1737665417918,0.004946,104130.0,104100.0,0.288162]
[1737665418142,0.19339029,104120.0,104040.0,0.14789337]
[1737665418342,0.07597985,104090.0,104080.0,0.09657483]
[1737665418543,0.07597985,104090.0,104080.0,0.09784312]
[1737665418855,0.07597985,104090.0,104080.0,0.36692212]
[1737665419466,0.07597985,104090.0,104080.0,0.34392212]
[1737665419778,0.07597985,104090.0,104060.0,0.1923345]
[1737665419779,0.05321231,104080.0,104060.0,0.0001425]
[1737665420001,0.09734729,104070.0,104060.0,0.0001425]
[1737665420202,1.69343629,104070.0,104060.0,0.0001425]
[1737665420429,0.192234,104040.0,104020.0,0.0039]
[1737665420608,0.19347329,104030.0,104020.0,0.0039]
[1737665420839,0.31017029,104030.0,104020.0,0.0039]
[1737665420973,0.19347329,104030.0,104020.0,0.0039]
[1737665421623,0.26347327,104030.0,103990.0,0.087829]
[1737665421823,0.06999998,104020.0,103990.0,0.00879716]
[1737665422074,0.11734727,104020.0,103990.0,0.29743211]
[1737665422251,0.16734727,104020.0,103990.0,0.29743211]
[1737665422457,0.16734727,104020.0,103990.0,0.0013738]
[1737665422458,0.19350029,104000.0,103990.0,0.0013738]
[1737665422805,0.38073429,104000.0,103990.0,0.0013738]
[1737665423209,0.38762829,104000.0,103990.0,0.0013738]
[1737665423389,0.23736029,104000.0,103990.0,0.0013738]
[1737665423937,0.04386,104000.0,103990.0,0.0013738]
[1737665424141,0.04386,104000.0,103990.0,0.023]
[1737665424294,0.04386,104000.0,103990.0,0.68460853]
[1737665424501,0.06999998,104060.0,104020.0,0.096133]
[1737665424703,0.09597971,104080.0,104050.0,0.096104]
[1737665424925,0.07597973,104080.0,104070.0,0.269089]
[1737665425110,0.05,104120.0,104080.0,0.19215]
[1737665425270,0.28945129,104110.0,104080.0,0.07589875]
[1737665425483,0.08238209,104140.0,104110.0,0.096048]
[1737665425711,0.09734729,104130.0,104090.0,0.09734729]
[1737665425931,0.00049571,104120.0,104100.0,0.192109]
[1737665426146,0.00049571,104120.0,104110.0,0.21639929]
[1737665426377,0.00049571,104120.0,104110.0,0.09734729]
[1737665426597,0.00049571,104120.0,104090.0,0.177266]
[1737665426798,0.097843,104120.0,104070.0,0.192163]
[1737665427042,0.00049571,104120.0,104100.0,0.023]
[1737665427248,0.00049571,104120.0,104110.0,0.21639929]
[1737665427450,0.00049571,104120.0,104110.0,0.23425002]
[1737665427651,0.097843,104120.0,104090.0,0.192126]
[1737665427855,0.16734727,104110.0,104070.0,0.288244]
[1737665428065,0.01999998,104090.0,104070.0,0.096087]
[1737665428279,0.00049571,104120.0,104090.0,0.096063]
[1737665428480,0.30819298,104100.0,104060.0,0.288268]
[1737665428696,0.05,104070.0,104040.0,0.288326]
[1737665428899,0.09734729,104070.0,104050.0,0.288317]
[1737665429128,0.19344629,104060.0,104030.0,0.28837]
[1737665429347,0.05,104040.0,104010.0,0.288426]
[1737665429582,0.11610998,104050.0,104020.0,0.096134]
[1737665429779,0.09734729,104050.0,104020.0,0.288404]
[1737665429981,0.14734729,104040.0,104010.0,0.33046122]
[1737665430187,0.01999998,104020.0,104010.0,0.01319262]
[1737665430442,0.28959629,104040.0,104010.0,0.01319262]
[1737665430443,0.30835998,104040.0,104010.0,0.01319262]
[1737665430645,0.30835998,104040.0,104010.0,0.30161862]
[1737665430646,0.09734729,104040.0,104010.0,0.30161862]
[1737665430804,0.09625756,104050.0,104020.0,0.288397]
[1737665431000,0.09749585,104050.0,104030.0,0.096124]
[1737665431247,0.00014856,104050.0,104030.0,0.3364391]
[1737665431452,0.09749585,104050.0,104030.0,0.096124]
[1737665431649,0.00014856,104050.0,104030.0,0.096124]
[1737665431803,0.00014856,104050.0,104040.0,0.00248386]
[1737665432005,0.11749583,104050.0,104040.0,0.00248386]
[1737665432236,0.01999998,104000.0,103980.0,0.0001426]
[1737665432433,0.24351029,103990.0,103980.0,0.0001426]
[1737665432633,0.11734727,103990.0,103980.0,0.0001426]
[1737665432861,0.01999998,104000.0,103980.0,0.0963136]
[1737665433070,0.09734729,103990.0,103980.0,0.0001426]
[1737665433194,0.11734727,103990.0,103980.0,0.0001426]
[1737665433404,0.24351029,103990.0,103980.0,0.0001426]
[1737665433600,0.09749571,103990.0,103980.0,0.0001426]
[1737665433804,0.11749569,103990.0,103980.0,0.0001426]
[1737665434057,0.01999998,103980.0,103960.0,0.0131942]
[1737665434258,0.0962,103950.0,103940.0,0.02111126]
[1737665434462,0.09734729,103950.0,103940.0,0.02111126]
[1737665435015,0.21236698,103970.0,103940.0,0.02111126]
[1737665435223,0.09734729,103960.0,103940.0,0.02111126]
[1737665435451,0.09734729,103960.0,103920.0,5.069e-05]
[1737665435452,0.1016,103940.0,103920.0,5.069e-05]
[1737665435657,0.47088347,103930.0,103920.0,5.069e-05]
[1737665435891,0.22046793,103930.0,103920.0,5.069e-05]
[1737665436103,0.02483216,103940.0,103920.0,5.069e-05]
[1737665436307,0.00014837,103960.0,103940.0,0.096207]
[1737665436533,0.00014837,103960.0,103940.0,0.03859753]
[1737665436754,0.00014837,103960.0,103940.0,0.192417]
[1737665436960,0.00014837,103960.0,103950.0,0.0962]
[1737665437135,0.00014837,103960.0,103950.0,0.12034729]
[1737665437318,0.00014837,103960.0,103950.0,0.0962]
[1737665437676,0.21369064,103960.0,103930.0,0.096215]
[1737665437889,0.00014837,103960.0,103950.0,0.0962]
[1737665438301,0.00014837,103960.0,103950.0,0.21654729]
[1737665438508,0.00014837,103960.0,103950.0,0.36654729]
[1737665438715,0.11612598,104030.0,103980.0,0.192339]
[1737665438922,0.09734729,104030.0,104020.0,0.096135]
[1737665439107,0.02014909,104040.0,104020.0,0.096134]
[1737665439349,0.03877425,104100.0,104090.0,0.02]
[1737665439555,0.08238209,104130.0,104120.0,0.02]
[1737665439766,0.17841509,104130.0,104120.0,0.02]
[1737665439970,0.17891246,104130.0,104090.0,0.56552318]
[1737665440175,0.17891246,104130.0,104100.0,0.116058]
[1737665440176,0.27626375,104130.0,104100.0,0.116058]
[1737665440398,0.27626375,104130.0,104100.0,0.40552729]
[1737665440399,0.08238209,104110.0,104100.0,0.40552729]
[1737665440602,0.08238209,104110.0,104100.0,0.11734729]
[1737665440809,0.08238209,104110.0,104100.0,0.39337918]
[1737665441010,0.27578138,104110.0,104100.0,0.02]
[1737665441218,0.46788538,104110.0,104090.0,0.02]
[1737665441419,0.09734729,104100.0,104090.0,0.02]
[1737665442292,0.08238209,104110.0,104100.0,0.02]
[1737665442489,0.08238209,104110.0,104100.0,0.21340829]
[1737665442693,0.08238209,104110.0,104100.0,0.02370104]
[1737665442897,0.68810856,104110.0,104050.0,0.0961]
[1737665443070,0.27731818,104060.0,104030.0,0.28837]
[1737665443279,0.27731818,104040.0,104030.0,0.116126]
[1737665443821,0.096126,104030.0,104010.0,0.02]
[1737665444046,0.37466547,104020.0,103990.0,0.28848]
[1737665444264,0.09734729,104020.0,104000.0,0.02]
[1737665444477,0.096127,104030.0,104010.0,0.02]
[1737665444689,0.09734729,104020.0,104010.0,0.02]
[1737665444893,0.09734729,104020.0,104000.0,0.02014911]
[1737665445145,0.38575529,104020.0,104000.0,0.04139622]
[1737665445362,0.09734729,104010.0,104000.0,0.00014911]
[1737665445704,0.19349129,104010.0,104000.0,0.00014911]
[1737665445915,0.192217,104050.0,104000.0,0.02014911]
[1737665446115,0.09734729,104050.0,104030.0,0.02]
[1737665446434,0.04749925,104100.0,104080.0,0.02]
[1737665446661,0.04749925,104100.0,104090.0,0.00576211]
[1737665446662,0.19370854,104100.0,104090.0,0.00576211]
[1737665446834,0.52102572,104100.0,104090.0,0.00576211]
[1737665447031,0.288305,104060.0,104040.0,0.02]
[1737665447234,0.096088,104080.0,104060.0,0.02]
[1737665447536,0.00029925,104100.0,104090.0,0.02]
[1737665447769,0.00049675,104080.0,104070.0,0.02485059]
[1737665447980,0.00049675,104080.0,104060.0,0.03210045]
[1737665448183,0.29000604,104080.0,104050.0,0.02]
[1737665448391,0.29000604,104080.0,104020.0,0.288866]
[1737665448392,0.09734729,104070.0,104040.0,0.02]
[1737665448624,0.09734729,104060.0,104030.0,0.02]
[1737665448945,0.09609,104070.0,104040.0,0.308327]
[1737665449158,0.19345329,104060.0,104030.0,0.116125]
[1737665449373,0.09734729,104060.0,104000.0,0.192303]
[1737665449575,0.288353,104040.0,104020.0,0.02]
[1737665449795,0.09734729,104030.0,104020.0,0.02]
[1737665450002,0.096088,104080.0,104050.0,0.116106]
[1737665450215,0.241545,104090.0,104030.0,0.00494832]
[1737665450216,0.37466547,104060.0,104030.0,0.00494832]
[1737665450417,0.09734729,104060.0,104030.0,0.10107232]
[1737665450620,0.09734729,104060.0,104040.0,0.288343]
[1737665450831,0.09609,104070.0,104050.0,0.116107]
[1737665451043,0.09734729,104060.0,104040.0,0.308344]
[1737665451254,0.19344829,104060.0,104030.0,0.17162765]
[1737665451425,0.19344829,104060.0,104050.0,0.00489945]
[1737665451658,0.096107,104050.0,104020.0,0.288391]
[1737665451831,0.09734729,104040.0,104020.0,0.3584586]
[1737665452194,0.28566929,104050.0,104020.0,0.3584586]
[1737665452389,0.288273,104070.0,104040.0,0.02]
[1737665452598,0.096132,104030.0,104000.0,0.116152]
[1737665452800,0.096132,104030.0,104000.0,0.192366]
[1737665452801,0.09734729,104020.0,104000.0,0.192366]
[1737665453009,0.09734729,104020.0,104000.0,0.3289779]
[1737665453226,0.192221,104050.0,104020.0,0.19227]
[1737665453431,0.48178629,104050.0,104020.0,0.116134]
[1737665453637,0.09734729,104030.0,104000.0,6e-05]
[1737665453850,0.46955318,104040.0,104000.0,6e-05]
[1737665453851,0.096144,104010.0,104000.0,6e-05]
[1737665454061,0.19349129,104010.0,104000.0,6e-05]
[1737665456069,0.19349129,104010.0,104000.0,0.00020911]
[1737665456983,0.09734729,104010.0,104000.0,0.00020911]
[1737665457184,0.19227,104020.0,104000.0,0.00020911]
[1737665457436,0.096144,104010.0,104000.0,0.00035161]
[1737665457641,0.38149592,104010.0,104000.0,0.00035161]
[1737665457847,0.096201,103950.0,103930.0,0.04887167]
[1737665458049,0.48219729,103940.0,103920.0,5.069e-05]
[1737665458257,0.38598529,103940.0,103920.0,5.069e-05]
[1737665458431,0.192396,103960.0,103930.0,0.02]
[1737665458663,0.28974729,103950.0,103920.0,5.069e-05]
[1737665458866,0.288647,103940.0,103920.0,0.02316231]
[1737665459068,0.288647,103940.0,103920.0,0.03511643]
[1737665459069,0.19356529,103930.0,103920.0,0.03511643]
[1737665459299,0.19356529,103930.0,103920.0,0.02365692]
[1737665459709,0.49571563,103930.0,103920.0,0.02365692]
[1737665460244,0.09734729,103930.0,103920.0,0.02365692]
[1737665460449,0.27731818,103970.0,103950.0,0.096192]
[1737665460651,0.09734729,103960.0,103950.0,0.0962]
[1737665460883,0.288508,103990.0,103960.0,0.19238]
[1737665461082,0.09619,103960.0,103940.0,0.02]
[1737665461280,0.09734729,103950.0,103930.0,0.02]
[1737665461481,0.38599029,103940.0,103920.0,5.069e-05]
[1737665461684,0.37353618,103930.0,103920.0,5.069e-05]
[1737665461909,0.09734729,103930.0,103920.0,5.069e-05]
[1737665462462,0.56593718,103950.0,103920.0,0.0967713]
[1737665462579,0.09734729,103930.0,103920.0,0.11058112]
[1737665462781,0.09734729,103930.0,103920.0,0.0005453]
[1737665463009,0.47088347,103930.0,103920.0,0.01375463]
[1737665463208,0.49316013,103930.0,103920.0,0.01375463]
[1737665463452,0.82815213,103930.0,103920.0,0.01275463]
[1737665463609,0.83790313,103930.0,103920.0,0.01275463]
[1737665463814,0.64316013,103930.0,103920.0,0.01275463]
[1737665464072,0.292927,103920.0,103910.0,0.0001429]
[1737665464261,0.292927,103920.0,103900.0,0.0163633]
[1737665464262,0.319237,103910.0,103900.0,0.0163633]
[1737665464574,0.12434054,103910.0,103900.0,0.1126093]
[1737665464732,0.09671823,103930.0,103900.0,0.2288423]
[1737665464936,0.096237,103910.0,103900.0,0.0163633]
[1737665465137,0.09734729,103910.0,103900.0,0.0163633]
[1737665465340,0.20009002,103900.0,103890.0,1.00796187]
[1737665465545,0.29808583,103900.0,103890.0,1.00796187]
[1737665465923,0.19359329,103900.0,103890.0,1.00796187]
[1737665466123,0.09734729,103900.0,103890.0,1.00796187]
[1737665466333,0.27193823,103930.0,103890.0,1.00796187]
[1737665466334,0.00049623,103930.0,103890.0,1.41406016]
[1737665466540,0.00049623,103930.0,103890.0,1.00796187]
[1737665466541,0.19359329,103900.0,103890.0,1.00796187]
[1737665467371,0.21908583,103900.0,103890.0,0.99909373]
[1737665467580,0.19359329,103900.0,103890.0,0.99909373]
[1737665467793,0.54208583,103900.0,103890.0,0.99909373]
[1737665468205,0.74208583,103900.0,103890.0,0.99909373]
[1737665468619,0.69208583,103900.0,103890.0,0.99909373]
[1737665468827,0.12034729,103900.0,103890.0,0.99909373]
[1737665469039,0.09734729,103900.0,103890.0,0.99909373]
[1737665469244,0.19359329,103900.0,103890.0,0.99909373]
[1737665469445,0.09734729,103900.0,103890.0,0.99909373]
[1737665469654,0.288692,103920.0,103890.0,1.19160373]
[1737665469865,0.09734729,103910.0,103900.0,0.0001427]
[1737665470081,0.62090247,103910.0,103900.0,0.0001427]
[1737665470287,1.42338847,103910.0,103900.0,0.0001427]
[1737665470493,1.41396747,103910.0,103900.0,0.0001427]
[1737665470699,1.01396747,103910.0,103900.0,0.0001427]
[1737665470910,0.41458429,103910.0,103900.0,0.0001427]
[1737665471123,0.57282729,103910.0,103900.0,0.0001427]
[1737665471335,1.19000647,103910.0,103900.0,0.0001427]
[1737665471559,0.653906,103900.0,103890.0,0.99909373]
[1737665471783,1.17296229,103900.0,103890.0,0.94029373]
[1737665471987,0.70142929,103900.0,103890.0,0.89029373]
[1737665472462,0.453915,103890.0,103880.0,1.38864727]
[1737665472668,0.19360229,103890.0,103880.0,1.38864727]
[1737665472871,0.09734729,103890.0,103880.0,1.58225856]
[1737665473079,0.32366729,103890.0,103880.0,1.38864727]
[1737665473279,0.14120729,103890.0,103880.0,1.38983336]